[Event "Betsys MČR v online bleskovém šachu 2021"]
[Site "Chess.com"]
[Date "2021.04.17"]
[Round "7"]
[White "Sfreedom01"]
[Black "svobodan"]
[Result "1-0"]
[WhiteElo "1348"]
[BlackElo "1640"]
[TimeControl "180+1"]
[EndTime "10:13:32 PDT"]
[Termination "Uživatel Sfreedom01 zvítězil na čas"]

1. e4 {[%clk 0:03:00.9]} 1... c5 {[%clk 0:02:59.7]} 2. c3 {[%clk 0:03:00.5]}
2... Nf6 {[%clk 0:02:58.3]} 3. d3 {[%clk 0:02:59.4]} 3... d6 {[%clk 0:02:57.3]}
4. Nf3 {[%clk 0:02:58.7]} 4... g6 {[%clk 0:02:57]} 5. Be2 {[%clk 0:02:58.7]}
5... Bg7 {[%clk 0:02:56.8]} 6. Bg5 {[%clk 0:02:56]} 6... O-O {[%clk 0:02:56.5]}
7. Bxf6 {[%clk 0:02:53.7]} 7... Bxf6 {[%clk 0:02:56.1]} 8. Qd2 {[%clk
0:02:53.7]} 8... Nc6 {[%clk 0:02:55.3]} 9. O-O {[%clk 0:02:53]} 9... a6 {[%clk
0:02:47.4]} 10. a3 {[%clk 0:02:52.7]} 10... b5 {[%clk 0:02:45.8]} 11. b4 {[%clk
0:02:52.7]} 11... cxb4 {[%clk 0:02:43]} 12. axb4 {[%clk 0:02:52.6]} 12... Nxb4
{[%clk 0:02:39.3]} 13. d4 {[%clk 0:02:28.2]} 13... Nc6 {[%clk 0:02:37.1]} 14. d5
{[%clk 0:02:25.1]} 14... Ne5 {[%clk 0:02:35.4]} 15. Nxe5 {[%clk 0:02:24.2]}
15... Bxe5 {[%clk 0:02:35.2]} 16. Ra2 {[%clk 0:02:21.6]} 16... Qc7 {[%clk
0:02:16.3]} 17. Bxb5 {[%clk 0:02:14.6]} 17... Bb7 {[%clk 0:02:09.1]} 18. Bd3
{[%clk 0:02:00.8]} 18... Rfc8 {[%clk 0:02:01.4]} 19. c4 {[%clk 0:01:55.3]} 19...
Bg7 {[%clk 0:01:36.9]} 20. f4 {[%clk 0:01:49.7]} 20... a5 {[%clk 0:01:17.8]} 21.
Nc3 {[%clk 0:01:45.2]} 21... Ba6 {[%clk 0:01:15.5]} 22. Nb5 {[%clk 0:01:35.4]}
22... Bxb5 {[%clk 0:01:14.1]} 23. cxb5 {[%clk 0:01:35.8]} 23... Qc3 {[%clk
0:01:14]} 24. b6 {[%clk 0:01:09.8]} 24... Qd4+ {[%clk 0:01:07.7]} 25. Kh1 {[%clk
0:00:56.2]} 25... Qxb6 {[%clk 0:01:07.3]} 26. Rb1 {[%clk 0:00:49.8]} 26... Qa7
{[%clk 0:00:36.3]} 27. Bb5 {[%clk 0:00:43.8]} 27... Qd4 {[%clk 0:00:31.4]} 28.
Qxd4 {[%clk 0:00:32.5]} 28... Bxd4 {[%clk 0:00:30.7]} 29. Bc6 {[%clk 0:00:32.2]}
29... Rab8 {[%clk 0:00:26.5]} 30. Rxb8 {[%clk 0:00:27.6]} 30... Rxb8 {[%clk
0:00:26.6]} 31. h3 {[%clk 0:00:28]} 31... Rb1+ {[%clk 0:00:21.4]} 32. Kh2 {[%clk
0:00:28]} 32... Bb6 {[%clk 0:00:20.9]} 33. h4 {[%clk 0:00:23.8]} 33... Rb4
{[%clk 0:00:20.1]} 34. e5 {[%clk 0:00:20.5]} 34... dxe5 {[%clk 0:00:18.7]} 35.
fxe5 {[%clk 0:00:20.9]} 35... Rxh4+ {[%clk 0:00:19.2]} 36. Kg3 {[%clk
0:00:20.4]} 36... Rh5 {[%clk 0:00:16.6]} 37. Kf4 {[%clk 0:00:19.7]} 37... Rh4+
{[%clk 0:00:14.9]} 38. g4 {[%clk 0:00:19.3]} 38... Rh1 {[%clk 0:00:11.5]} 39. e6
{[%clk 0:00:17.7]} 39... Rf1+ {[%clk 0:00:11]} 40. Kg5 {[%clk 0:00:15.4]} 40...
fxe6 {[%clk 0:00:09.2]} 41. dxe6 {[%clk 0:00:14.8]} 41... Be3+ {[%clk
0:00:08.2]} 42. Kh4 {[%clk 0:00:13.3]} 42... g5+ {[%clk 0:00:06.1]} 43. Kg3
{[%clk 0:00:13.4]} 43... Bf4+ {[%clk 0:00:06.4]} 44. Kg2 {[%clk 0:00:12.9]}
44... Rc1 {[%clk 0:00:05.5]} 45. Bd7 {[%clk 0:00:09.3]} 45... Rc5 {[%clk
0:00:04.6]} 46. Kf3 {[%clk 0:00:09.1]} 46... Rc3+ {[%clk 0:00:04.4]} 47. Ke4
{[%clk 0:00:08.4]} 47... Rc5 {[%clk 0:00:05.1]} 48. Kd4 {[%clk 0:00:08]} 48...
Re5 {[%clk 0:00:04.7]} 49. Ra4 {[%clk 0:00:07]} 49... Kg7 {[%clk 0:00:03.7]} 50.
Kd3 {[%clk 0:00:05.4]} 50... Rd5+ {[%clk 0:00:03.7]} 51. Ke4 {[%clk 0:00:04.4]}
51... Re5+ {[%clk 0:00:03.8]} 52. Kd4 {[%clk 0:00:04.9]} 52... Kf6 {[%clk
0:00:04.3]} 53. Kc3 {[%clk 0:00:04]} 53... Bh2 {[%clk 0:00:03.5]} 54. Kd3 {[%clk
0:00:02.8]} 54... Bf4 {[%clk 0:00:03.8]} 55. Kd4 {[%clk 0:00:02.4]} 55... Re3
{[%clk 0:00:03.8]} 56. Rxa5 {[%clk 0:00:01.4]} 56... Re1 {[%clk 0:00:03.4]} 57.
Rf5+ {[%clk 0:00:01.8]} 57... Kg6 {[%clk 0:00:03.2]} 58. Rf7 {[%clk 0:00:02]}
58... Rc1 {[%clk 0:00:03.2]} 59. Kd3 {[%clk 0:00:02]} 59... Rd1+ {[%clk
0:00:03.6]} 60. Kc2 {[%clk 0:00:01.8]} 60... Rd2+ {[%clk 0:00:03.9]} 61. Kc3
{[%clk 0:00:02]} 61... h6 {[%clk 0:00:04.5]} 62. Kc4 {[%clk 0:00:02.4]} 62...
Rc2+ {[%clk 0:00:04.1]} 63. Kd3 {[%clk 0:00:02.3]} 63... Rd2+ {[%clk 0:00:04.4]}
64. Kc4 {[%clk 0:00:02.4]} 64... Re2 {[%clk 0:00:04.3]} 65. Be8 {[%clk
0:00:01.9]} 65... Rxe6 {[%clk 0:00:03.7]} 66. Kd3 {[%clk 0:00:02.5]} 66... Rd6+
{[%clk 0:00:02.4]} 67. Kc4 {[%clk 0:00:02.1]} 67... Rd2 {[%clk 0:00:01.7]} 68.
Rxf4+ {[%clk 0:00:01.2]} 1-0

[Event "Betsys MČR v online bleskovém šachu 2021"]
[Site "Chess.com"]
[Date "2021.04.17"]
[Round "7"]
[White "Krvelacny_krecek"]
[Black "HonzaVykouk"]
[Result "1/2-1/2"]
[WhiteElo "2400"]
[BlackElo "2683"]
[TimeControl "180+1"]
[EndTime "10:13:36 PDT"]
[Termination "Remíza opakováním pozice"]

1. d4 {[%clk 0:02:58]} 1... Nf6 {[%clk 0:02:59.7]} 2. c4 {[%clk 0:02:57.6]} 2...
g6 {[%clk 0:02:59.4]} 3. g3 {[%clk 0:02:57.8]} 3... Bg7 {[%clk 0:02:59.9]} 4.
Bg2 {[%clk 0:02:58.1]} 4... O-O {[%clk 0:03:00.6]} 5. Nc3 {[%clk 0:02:58.3]}
5... d6 {[%clk 0:03:01.5]} 6. Nf3 {[%clk 0:02:58.4]} 6... c6 {[%clk 0:03:02.2]}
7. O-O {[%clk 0:02:58.5]} 7... a6 {[%clk 0:03:03.1]} 8. h3 {[%clk 0:02:57.7]}
8... b5 {[%clk 0:03:02.8]} 9. b3 {[%clk 0:02:49.9]} 9... b4 {[%clk 0:02:59.9]}
10. Nb1 {[%clk 0:02:40.8]} 10... a5 {[%clk 0:02:59.7]} 11. Nbd2 {[%clk
0:02:37.7]} 11... Ba6 {[%clk 0:02:58.3]} 12. Qc2 {[%clk 0:02:34.1]} 12... Nbd7
{[%clk 0:02:52.8]} 13. Bb2 {[%clk 0:02:29.3]} 13... d5 {[%clk 0:02:49.2]} 14.
Rfe1 {[%clk 0:02:23.2]} 14... Rc8 {[%clk 0:02:44.9]} 15. e4 {[%clk 0:02:21.8]}
15... dxe4 {[%clk 0:02:24.4]} 16. Nxe4 {[%clk 0:02:20.5]} 16... Nxe4 {[%clk
0:02:25]} 17. Rxe4 {[%clk 0:02:09.2]} 17... Bb7 {[%clk 0:02:16.4]} 18. Rae1
{[%clk 0:02:01.8]} 18... e6 {[%clk 0:02:16.5]} 19. c5 {[%clk 0:01:53.5]} 19...
Ba6 {[%clk 0:02:08.6]} 20. Ne5 {[%clk 0:01:48.5]} 20... Nxe5 {[%clk 0:02:02.9]}
21. dxe5 {[%clk 0:01:43.2]} 21... Bd3 {[%clk 0:02:01.9]} 22. Qc1 {[%clk
0:01:40.9]} 22... Bxe4 {[%clk 0:02:02]} 23. Bxe4 {[%clk 0:01:40.9]} 23... Qc7
{[%clk 0:01:59.6]} 24. f4 {[%clk 0:01:34.5]} 24... Rfd8 {[%clk 0:01:59]} 25. Qe3
{[%clk 0:01:31.9]} 25... Bf8 {[%clk 0:01:54.2]} 26. Rc1 {[%clk 0:01:28.7]} 26...
Rd7 {[%clk 0:01:53]} 27. Rc2 {[%clk 0:01:20.2]} 27... Rcd8 {[%clk 0:01:46]} 28.
Kh2 {[%clk 0:01:19.6]} 28... Rd1 {[%clk 0:01:33.6]} 29. g4 {[%clk 0:01:12.8]}
29... Qd7 {[%clk 0:01:32.3]} 30. Bc1 {[%clk 0:01:03]} 30... Be7 {[%clk 0:01:04]}
31. Qf2 {[%clk 0:00:56.4]} 31... Rd4 {[%clk 0:00:51.1]} 32. Qg2 {[%clk
0:00:52.1]} 32... Qa7 {[%clk 0:00:48.5]} 33. Be3 {[%clk 0:00:51.1]} 33... Rxe4
{[%clk 0:00:28.7]} 34. Qxe4 {[%clk 0:00:50.4]} 34... Rd5 {[%clk 0:00:29.6]} 35.
Qc4 {[%clk 0:00:44.6]} 35... Qd7 {[%clk 0:00:29.1]} 36. Kg3 {[%clk 0:00:39.1]}
36... Qd8 {[%clk 0:00:27.9]} 37. Kf3 {[%clk 0:00:38.5]} 37... Bh4 {[%clk
0:00:27]} 38. Re2 {[%clk 0:00:37.1]} 38... Rd1 {[%clk 0:00:24.8]} 39. Qe4 {[%clk
0:00:37]} 39... Rf1+ {[%clk 0:00:22.4]} 40. Kg2 {[%clk 0:00:36.6]} 40... Qd1
{[%clk 0:00:21.9]} 41. Qc2 {[%clk 0:00:35.4]} 41... Qa1 {[%clk 0:00:15.2]} 42.
Qb2 {[%clk 0:00:24.8]} 42... Qd1 {[%clk 0:00:13.5]} 43. Qc2 {[%clk 0:00:22.4]}
43... Rh1 {[%clk 0:00:04.3]} 44. Qxd1 {[%clk 0:00:21.8]} 44... Rxd1 {[%clk
0:00:05.2]} 45. Rd2 {[%clk 0:00:18.6]} 45... Rxd2+ {[%clk 0:00:05.2]} 46. Bxd2
{[%clk 0:00:18.4]} 46... Be7 {[%clk 0:00:06.1]} 47. Be3 {[%clk 0:00:17.6]} 47...
Kf8 {[%clk 0:00:06]} 48. Kf3 {[%clk 0:00:17.7]} 48... Ke8 {[%clk 0:00:06.1]} 49.
Ke4 {[%clk 0:00:18]} 49... Kd7 {[%clk 0:00:06.4]} 50. Kd4 {[%clk 0:00:17.8]}
50... Kc7 {[%clk 0:00:06.8]} 51. Bd2 {[%clk 0:00:16.5]} 51... Kb7 {[%clk
0:00:06.6]} 52. Kc4 {[%clk 0:00:16.9]} 52... Ka6 {[%clk 0:00:06.7]} 53. Bc1
{[%clk 0:00:16.7]} 53... Kb7 {[%clk 0:00:06.5]} 54. a3 {[%clk 0:00:16.2]} 54...
bxa3 {[%clk 0:00:06.4]} 55. Bxa3 {[%clk 0:00:16.4]} 55... Ka6 {[%clk 0:00:07.1]}
56. Bc1 {[%clk 0:00:16.2]} 56... Bh4 {[%clk 0:00:06.8]} 57. Bd2 {[%clk
0:00:11.2]} 57... Bg3 {[%clk 0:00:06.7]} 58. Be3 {[%clk 0:00:07.6]} 58... Be1
{[%clk 0:00:06]} 59. Bc1 {[%clk 0:00:05.9]} 59... Bg3 {[%clk 0:00:06.2]} 60. Be3
{[%clk 0:00:06]} 60... g5 {[%clk 0:00:06.5]} 61. fxg5 {[%clk 0:00:04]} 61...
Bxe5 {[%clk 0:00:07.2]} 62. h4 {[%clk 0:00:04.1]} 62... Bg7 {[%clk 0:00:06.8]}
63. h5 {[%clk 0:00:04.3]} 63... Bf8 {[%clk 0:00:06.2]} 64. Bf4 {[%clk 0:00:04]}
64... Be7 {[%clk 0:00:06.2]} 65. Be3 {[%clk 0:00:03.4]} 65... Bd8 {[%clk
0:00:06.3]} 66. Bf4 {[%clk 0:00:03.6]} 66... Kb7 {[%clk 0:00:06.4]} 67. Be3
{[%clk 0:00:03.3]} 67... Kc8 {[%clk 0:00:06.7]} 68. Bf4 {[%clk 0:00:03.3]} 68...
Kd7 {[%clk 0:00:07.1]} 69. Kd4 {[%clk 0:00:03.3]} 69... Be7 {[%clk 0:00:06]} 70.
Kc4 {[%clk 0:00:03]} 70... Bd8 {[%clk 0:00:05.7]} 71. Kd4 {[%clk 0:00:03.3]}
71... Be7 {[%clk 0:00:06]} 72. Kc4 {[%clk 0:00:03.3]} 72... Bd8 {[%clk
0:00:05.2]} 1/2-1/2

[Event "Betsys MČR v online bleskovém šachu 2021"]
[Site "Chess.com"]
[Date "2021.04.17"]
[Round "7"]
[White "MametevArtem097"]
[Black "YoungMegaMind"]
[Result "0-1"]
[WhiteElo "1993"]
[BlackElo "2222"]
[TimeControl "180+1"]
[EndTime "10:13:53 PDT"]
[Termination "Uživatel YoungMegaMind zvítězil po vzdání soupeře"]

1. d4 {[%clk 0:03:00.9]} 1... Nf6 {[%clk 0:02:56.2]} 2. Nc3 {[%clk 0:03:00.6]}
2... d5 {[%clk 0:02:54.1]} 3. Bf4 {[%clk 0:03:00.2]} 3... e6 {[%clk 0:02:53.1]}
4. Nb5 {[%clk 0:02:57.4]} 4... Na6 {[%clk 0:02:48.3]} 5. e3 {[%clk 0:02:48.4]}
5... c6 {[%clk 0:02:47.4]} 6. Nc3 {[%clk 0:02:47.9]} 6... Bd6 {[%clk 0:02:44.7]}
7. Bxd6 {[%clk 0:02:41.2]} 7... Qxd6 {[%clk 0:02:44.2]} 8. Nf3 {[%clk
0:02:41.8]} 8... O-O {[%clk 0:02:41.2]} 9. Bd3 {[%clk 0:02:41.1]} 9... Nb8
{[%clk 0:02:37.4]} 10. e4 {[%clk 0:02:37.4]} 10... dxe4 {[%clk 0:02:37]} 11.
Nxe4 {[%clk 0:02:37]} 11... Nxe4 {[%clk 0:02:37.1]} 12. Bxe4 {[%clk 0:02:37.3]}
12... Nd7 {[%clk 0:02:31.9]} 13. Qd3 {[%clk 0:02:05.8]} 13... Nf6 {[%clk
0:02:30.3]} 14. O-O-O {[%clk 0:02:03.5]} 14... b6 {[%clk 0:02:21.1]} 15. Ne5
{[%clk 0:01:48.9]} 15... Bb7 {[%clk 0:02:18.8]} 16. g4 {[%clk 0:01:33.9]} 16...
Rac8 {[%clk 0:02:01.4]} 17. Rhg1 {[%clk 0:01:23.3]} 17... Rc7 {[%clk 0:01:46.8]}
18. h4 {[%clk 0:01:15.8]} 18... Nxe4 {[%clk 0:01:44]} 19. Qxe4 {[%clk
0:01:15.2]} 19... c5 {[%clk 0:01:41.8]} 20. Qf4 {[%clk 0:01:00.4]} 20... cxd4
{[%clk 0:01:24.9]} 21. Qxd4 {[%clk 0:01:01.3]} 21... Qe7 {[%clk 0:01:20]} 22. g5
{[%clk 0:00:55.9]} 22... Rfc8 {[%clk 0:01:18.8]} 23. c3 {[%clk 0:00:54.7]} 23...
Bd5 {[%clk 0:01:18.1]} 24. Kb1 {[%clk 0:00:51.6]} 24... Qc5 {[%clk 0:00:58.9]}
25. Qxc5 {[%clk 0:00:45.3]} 25... Rxc5 {[%clk 0:00:58.7]} 26. Rd4 {[%clk
0:00:43.9]} 26... R5c7 {[%clk 0:00:47.5]} 27. Rgd1 {[%clk 0:00:42.7]} 27... b5
{[%clk 0:00:45.6]} 28. Nd3 {[%clk 0:00:33.5]} 28... a5 {[%clk 0:00:45.3]} 29. b4
{[%clk 0:00:25.6]} 29... Rxc3 {[%clk 0:00:31.4]} 30. bxa5 {[%clk 0:00:25.2]}
30... g6 {[%clk 0:00:27.9]} 31. Nb4 {[%clk 0:00:21.8]} 31... Bf3 {[%clk
0:00:26.9]} 32. R1d3 {[%clk 0:00:18.2]} 32... Rc1+ {[%clk 0:00:22.4]} 33. Kb2
{[%clk 0:00:17.8]} 33... Bg4 {[%clk 0:00:22.6]} 34. Rd8+ {[%clk 0:00:13]} 34...
Kg7 {[%clk 0:00:22.3]} 35. Rxc8 {[%clk 0:00:12.7]} 35... Rxc8 {[%clk 0:00:22.2]}
36. a6 {[%clk 0:00:13.2]} 36... Ra8 {[%clk 0:00:19.9]} 37. Rd6 {[%clk
0:00:11.7]} 37... h6 {[%clk 0:00:18.4]} 38. Rb6 {[%clk 0:00:10.7]} 38... hxg5
{[%clk 0:00:18.1]} 39. hxg5 {[%clk 0:00:10.2]} 39... Bf3 {[%clk 0:00:18.3]} 40.
Rxb5 {[%clk 0:00:09]} 40... Ra7 {[%clk 0:00:17.4]} 41. a4 {[%clk 0:00:07.5]}
41... Bd5 {[%clk 0:00:17.1]} 42. Nxd5 {[%clk 0:00:07.1]} 42... exd5 {[%clk
0:00:18]} 43. Kc3 {[%clk 0:00:07.3]} 43... Rxa6 {[%clk 0:00:18.9]} 44. a5 {[%clk
0:00:05.8]} 44... Kf8 {[%clk 0:00:18.2]} 45. Rxd5 {[%clk 0:00:05.7]} 45... Ke7
{[%clk 0:00:18.6]} 46. Kb4 {[%clk 0:00:06.3]} 46... Ke6 {[%clk 0:00:19]} 47. Rb5
{[%clk 0:00:04.3]} 47... Ra8 {[%clk 0:00:19.2]} 48. Rb6+ {[%clk 0:00:04.4]}
48... Kd7 {[%clk 0:00:18.4]} 49. Kb5 {[%clk 0:00:04.2]} 49... Kc7 {[%clk
0:00:18.5]} 50. Rf6 {[%clk 0:00:04]} 50... Rf8 {[%clk 0:00:16.6]} 51. a6 {[%clk
0:00:03.8]} 51... Kb8 {[%clk 0:00:16.6]} 52. Kb6 {[%clk 0:00:03.9]} 52... Ka8
{[%clk 0:00:16.7]} 53. a7 {[%clk 0:00:03.8]} 53... Re8 {[%clk 0:00:16.8]} 54.
Rc6 {[%clk 0:00:03.6]} 54... Rd8 {[%clk 0:00:16.3]} 55. Rc7 {[%clk 0:00:03.8]}
55... Rd6+ {[%clk 0:00:16.2]} 56. Rc6 {[%clk 0:00:04.2]} 56... Rd8 {[%clk
0:00:15.1]} 57. Kc7 {[%clk 0:00:04.2]} 57... Re8 {[%clk 0:00:15.3]} 58. Rd6
{[%clk 0:00:04.3]} 58... Re5 {[%clk 0:00:14.9]} 59. Rd8+ {[%clk 0:00:04.2]}
59... Kxa7 {[%clk 0:00:15]} 60. Kd7 {[%clk 0:00:04.5]} 60... Rxg5 {[%clk
0:00:14.9]} 61. Ke7 {[%clk 0:00:04.5]} 61... Rf5 {[%clk 0:00:15.3]} 62. Rd7+
{[%clk 0:00:04.7]} 62... Kb6 {[%clk 0:00:14.3]} 63. Rd2 {[%clk 0:00:05.2]} 63...
Kc5 {[%clk 0:00:14.1]} 64. Rc2+ {[%clk 0:00:05.5]} 64... Kd4 {[%clk 0:00:14.5]}
65. Kd6 {[%clk 0:00:05.5]} 65... Ke4 {[%clk 0:00:14.8]} 66. Re2+ {[%clk
0:00:05.5]} 66... Kf3 {[%clk 0:00:15.1]} 67. Rd2 {[%clk 0:00:05.7]} 67... Kg2
{[%clk 0:00:15.3]} 68. f4+ {[%clk 0:00:05.7]} 68... Kg3 {[%clk 0:00:15.2]} 69.
Ke7 {[%clk 0:00:05.5]} 69... Kxf4 {[%clk 0:00:15.4]} 70. Rd6 {[%clk 0:00:05.9]}
70... Kg5 {[%clk 0:00:15.2]} 71. Kd7 {[%clk 0:00:05.2]} 71... Kh6 {[%clk
0:00:15.1]} 72. Kc6 {[%clk 0:00:05.7]} 72... Kg7 {[%clk 0:00:15.5]} 73. Kc7
{[%clk 0:00:04.8]} 73... g5 {[%clk 0:00:15.3]} 74. Rd4 {[%clk 0:00:04.4]} 74...
Kg6 {[%clk 0:00:15.2]} 75. Rg4 {[%clk 0:00:04.2]} 75... Rf4 {[%clk 0:00:14.8]}
76. Rg3 {[%clk 0:00:03.8]} 76... g4 {[%clk 0:00:15]} 77. Kd6 {[%clk 0:00:04.1]}
77... f5 {[%clk 0:00:12.9]} 78. Ke5 {[%clk 0:00:04]} 78... Kg5 {[%clk
0:00:13.2]} 79. Rg1 {[%clk 0:00:03.1]} 79... Rf3 {[%clk 0:00:13.5]} 80. Kd4
{[%clk 0:00:03]} 80... g3 {[%clk 0:00:13.4]} 81. Rg2 {[%clk 0:00:02.7]} 81...
Kg4 {[%clk 0:00:13.8]} 82. Ke5 {[%clk 0:00:02.8]} 82... Rf2 {[%clk 0:00:13.4]}
83. Kf6 {[%clk 0:00:03.3]} 83... Rxg2 {[%clk 0:00:12.7]} 84. Kg6 {[%clk
0:00:04.2]} 84... f4 {[%clk 0:00:12.7]} 85. Kh6 {[%clk 0:00:05.1]} 85... f3
{[%clk 0:00:13.6]} 0-1

[Event "Betsys MČR v online bleskovém šachu 2021"]
[Site "Chess.com"]
[Date "2021.04.17"]
[Round "8"]
[White "DrDANDog"]
[Black "Honzik1950"]
[Result "1-0"]
[WhiteElo "1768"]
[BlackElo "1504"]
[TimeControl "180+1"]
[EndTime "10:16:03 PDT"]
[Termination "Uživatel DrDANDog zvítězil po vzdání soupeře"]

1. e4 {[%clk 0:03:00.9]} 1... a6 {[%clk 0:02:59.6]} 2. d4 {[%clk 0:03:00.4]}
2... b5 {[%clk 0:02:59.8]} 3. Nf3 {[%clk 0:03:00.7]} 3... e6 {[%clk 0:02:57.9]}
4. d5 {[%clk 0:03:00.6]} 4... Be7 {[%clk 0:02:56.1]} 5. dxe6 {[%clk 0:02:59.3]}
5... dxe6 {[%clk 0:02:56.4]} 6. Qxd8+ {[%clk 0:02:59.7]} 6... Bxd8 {[%clk
0:02:56.7]} 7. Nc3 {[%clk 0:02:58.8]} 7... Bb7 {[%clk 0:02:54.8]} 8. a3 {[%clk
0:02:53.8]} 8... Nf6 {[%clk 0:02:54.7]} 9. Bd3 {[%clk 0:02:52.8]} 9... O-O
{[%clk 0:02:53.5]} 10. O-O {[%clk 0:02:51.1]} 10... c5 {[%clk 0:02:53.6]} 11.
Bg5 {[%clk 0:02:49.5]} 11... c4 {[%clk 0:02:50.8]} 12. Bxf6 {[%clk 0:02:48.2]}
12... Bxf6 {[%clk 0:02:50.6]} 13. Be2 {[%clk 0:02:47.3]} 13... Nc6 {[%clk
0:02:40.6]} 14. a4 {[%clk 0:02:34.7]} 14... Nd4 {[%clk 0:02:36.2]} 15. Nxd4
{[%clk 0:02:30.9]} 15... Bxd4 {[%clk 0:02:36.3]} 16. axb5 {[%clk 0:02:30.1]}
16... axb5 {[%clk 0:02:36.3]} 17. Nxb5 {[%clk 0:02:29.2]} 17... Bxe4 {[%clk
0:02:31.5]} 18. Nxd4 {[%clk 0:02:28.1]} 18... Rxa1 {[%clk 0:02:28.1]} 19. Rxa1
{[%clk 0:02:27.7]} 1-0

[Event "Betsys MČR v online bleskovém šachu 2021"]
[Site "Chess.com"]
[Date "2021.04.17"]
[Round "8"]
[White "Anyna"]
[Black "Newyork6"]
[Result "1-0"]
[WhiteElo "811"]
[BlackElo "332"]
[TimeControl "180+1"]
[EndTime "10:16:10 PDT"]
[Termination "Uživatel Anyna zvítězil matem"]

1. d4 {[%clk 0:03:00.9]} 1... Nf6 {[%clk 0:02:51.2]} 2. Nf3 {[%clk 0:03:00]}
2... e6 {[%clk 0:02:47.3]} 3. e3 {[%clk 0:02:57.6]} 3... Be7 {[%clk 0:02:44.5]}
4. Bd3 {[%clk 0:02:57.2]} 4... O-O {[%clk 0:02:41.8]} 5. O-O {[%clk 0:02:53.4]}
5... b6 {[%clk 0:02:36.1]} 6. Nbd2 {[%clk 0:02:52.9]} 6... Nc6 {[%clk
0:02:32.8]} 7. Re1 {[%clk 0:02:52.5]} 7... Ba6 {[%clk 0:02:30]} 8. c3 {[%clk
0:02:53]} 8... Bxd3 {[%clk 0:02:25.3]} 9. e4 {[%clk 0:02:47.6]} 9... Bxe4 {[%clk
0:02:23.9]} 10. Nxe4 {[%clk 0:02:46.4]} 10... Nxe4 {[%clk 0:02:22.3]} 11. Rxe4
{[%clk 0:02:45.1]} 11... Nxd4 {[%clk 0:02:19]} 12. cxd4 {[%clk 0:02:43.6]} 12...
g6 {[%clk 0:02:13.9]} 13. Bh6 {[%clk 0:02:39.8]} 13... g5 {[%clk 0:02:14.8]} 14.
Rg4 {[%clk 0:02:33]} 14... Re8 {[%clk 0:02:15.7]} 15. Nxg5 {[%clk 0:02:26.1]}
15... Kh8 {[%clk 0:02:16.6]} 16. Nxf7# {[%clk 0:02:24.3]} 1-0

[Event "Betsys MČR v online bleskovém šachu 2021"]
[Site "Chess.com"]
[Date "2021.04.17"]
[Round "8"]
[White "VojtaT"]
[Black "MametevArtem097"]
[Result "0-1"]
[WhiteElo "1733"]
[BlackElo "1996"]
[TimeControl "180+1"]
[EndTime "10:16:27 PDT"]
[Termination "Uživatel MametevArtem097 zvítězil matem"]

1. e4 {[%clk 0:03:00.9]} 1... c5 {[%clk 0:02:58.8]} 2. Nf3 {[%clk 0:03:00]} 2...
Nc6 {[%clk 0:02:56.9]} 3. d4 {[%clk 0:02:58.2]} 3... cxd4 {[%clk 0:02:57.8]} 4.
Nxd4 {[%clk 0:02:56.9]} 4... e5 {[%clk 0:02:58.4]} 5. Nf5 {[%clk 0:02:56.3]}
5... d5 {[%clk 0:02:56.5]} 6. exd5 {[%clk 0:02:56.3]} 6... Bxf5 {[%clk
0:02:53.8]} 7. dxc6 {[%clk 0:02:56.1]} 7... Qxd1+ {[%clk 0:02:52.9]} 8. Kxd1
{[%clk 0:02:55.8]} 8... O-O-O+ {[%clk 0:02:53.6]} 9. Bd2 {[%clk 0:02:52.4]} 9...
bxc6 {[%clk 0:02:51.4]} 10. Ba6+ {[%clk 0:02:52]} 10... Kb8 {[%clk 0:02:50.3]}
11. Nc3 {[%clk 0:02:40.1]} 11... Nf6 {[%clk 0:02:49]} 12. f3 {[%clk 0:02:38.6]}
12... e4 {[%clk 0:02:46]} 13. Ke2 {[%clk 0:02:28.9]} 13... exf3+ {[%clk
0:02:43.9]} 14. gxf3 {[%clk 0:02:29.8]} 14... Bc5 {[%clk 0:02:39.5]} 15. Bf4+
{[%clk 0:02:22.8]} 15... Ka8 {[%clk 0:02:38.2]} 16. Rhe1 {[%clk 0:01:54.5]}
16... Rhe8+ {[%clk 0:02:34.5]} 17. Kf1 {[%clk 0:01:54.7]} 17... Bh3# {[%clk
0:02:32]} 0-1

[Event "Betsys MČR v online bleskovém šachu 2021"]
[Site "Chess.com"]
[Date "2021.04.17"]
[Round "8"]
[White "pa9p"]
[Black "MaTpAt113"]
[Result "1-0"]
[WhiteElo "1763"]
[BlackElo "845"]
[TimeControl "180+1"]
[EndTime "10:16:27 PDT"]
[Termination "Uživatel pa9p zvítězil po vzdání soupeře"]

1. e4 {[%clk 0:03:00.9]} 1... c6 {[%clk 0:02:59]} 2. Nf3 {[%clk 0:02:58.5]} 2...
d5 {[%clk 0:02:57.6]} 3. exd5 {[%clk 0:02:58.4]} 3... cxd5 {[%clk 0:02:57]} 4.
Be2 {[%clk 0:02:58.9]} 4... Bf5 {[%clk 0:02:55.1]} 5. O-O {[%clk 0:02:58.8]}
5... e6 {[%clk 0:02:51.5]} 6. d4 {[%clk 0:02:58.5]} 6... Nc6 {[%clk 0:02:50.3]}
7. c3 {[%clk 0:02:58]} 7... Bd6 {[%clk 0:02:46.8]} 8. Nbd2 {[%clk 0:02:55]} 8...
Qc7 {[%clk 0:02:45.2]} 9. h3 {[%clk 0:02:50.7]} 9... Be4 {[%clk 0:02:44.5]} 10.
Nxe4 {[%clk 0:02:49.6]} 10... dxe4 {[%clk 0:02:43.8]} 11. Ng5 {[%clk 0:02:49.6]}
11... Bh2+ {[%clk 0:02:42]} 12. Kh1 {[%clk 0:02:49.5]} 12... h6 {[%clk
0:02:40.8]} 13. Nxe4 {[%clk 0:02:49.2]} 13... Bd6 {[%clk 0:02:36.2]} 14. Bb5
{[%clk 0:02:48.8]} 14... a6 {[%clk 0:02:35.1]} 15. Bxc6+ {[%clk 0:02:44.6]}
15... bxc6 {[%clk 0:02:34.5]} 16. Qg4 {[%clk 0:02:39.2]} 16... f5 {[%clk
0:02:30.2]} 17. Qh5+ {[%clk 0:02:39.3]} 17... Kd8 {[%clk 0:02:22.5]} 18. Nxd6
{[%clk 0:02:38]} 18... Qxd6 {[%clk 0:02:20]} 19. Qf7 {[%clk 0:02:37.2]} 19...
Nf6 {[%clk 0:02:15.8]} 20. Qxg7 {[%clk 0:02:34.9]} 20... Rg8 {[%clk 0:02:10.3]}
21. Qxf6+ {[%clk 0:02:34.3]} 1-0

[Event "Betsys MČR v online bleskovém šachu 2021"]
[Site "Chess.com"]
[Date "2021.04.17"]
[Round "8"]
[White "Vesselovsky52"]
[Black "conysek"]
[Result "1-0"]
[WhiteElo "2331"]
[BlackElo "2123"]
[TimeControl "180+1"]
[EndTime "10:16:29 PDT"]
[Termination "Uživatel Vesselovsky52 zvítězil po vzdání soupeře"]

1. e4 {[%clk 0:03:00.9]} 1... e5 {[%clk 0:02:57.1]} 2. Nc3 {[%clk 0:02:58.5]}
2... Nc6 {[%clk 0:02:56.1]} 3. Bc4 {[%clk 0:02:56.8]} 3... Bc5 {[%clk
0:02:55.7]} 4. d3 {[%clk 0:02:55.4]} 4... Nf6 {[%clk 0:02:54.9]} 5. f4 {[%clk
0:02:55]} 5... d6 {[%clk 0:02:55]} 6. Nf3 {[%clk 0:02:54.3]} 6... Bg4 {[%clk
0:02:55.2]} 7. Na4 {[%clk 0:02:53.2]} 7... Bb6 {[%clk 0:02:53.8]} 8. Nxb6 {[%clk
0:02:51.3]} 8... axb6 {[%clk 0:02:54.7]} 9. h3 {[%clk 0:02:50.4]} 9... Bxf3
{[%clk 0:02:47.1]} 10. Qxf3 {[%clk 0:02:49.8]} 10... exf4 {[%clk 0:02:47.4]} 11.
Bxf4 {[%clk 0:02:44.9]} 11... Nd4 {[%clk 0:02:47.7]} 12. Qf2 {[%clk 0:02:40.2]}
12... Ne6 {[%clk 0:02:45.7]} 13. Bg3 {[%clk 0:02:34.1]} 13... Qe7 {[%clk
0:02:33.8]} 14. O-O {[%clk 0:02:29.6]} 14... h6 {[%clk 0:02:25.5]} 15. Bh4
{[%clk 0:02:22.8]} 15... g5 {[%clk 0:02:16.8]} 16. Qxf6 {[%clk 0:02:11.9]} 16...
gxh4 {[%clk 0:02:15.4]} 17. Qxh8+ {[%clk 0:02:09.5]} 1-0